[Event "Canary Islands-ch 2019"]
[Site "La Palma"]
[Date "2019.05.02"]
[Round "1.1"]
[White "Perez Bolanos, Joel"]
[Black "Ramirez Medina, Victor"]
[Result "1/2-1/2"]
[ECO "C27"]
[WhiteElo "1888"]
[BlackElo "2233"]
[Annotator "NA"]
[PlyCount "119"]
[EventDate "2019.05.02"]
[EventType "swiss"]
[EventCountry "ESP"]
[SourceTitle "playchess.com"]
[Source "ChessBase"]
[SourceQuality "1"]
[TimeControl "5400+30"]

1. e4 {[%emt 0:00:16]} e5 {[%emt 0:00:00]} 2. Nc3 {[%emt 0:01:53]} Nf6 {[%emt 0:00:08]} 3. Bc4 {[%emt 0:00:07]} Nxe4 {[%emt 0:00:55]} 4. Nxe4 {[%emt 0:01:44]} d5 {[%emt 0:00:37]} 5. Qh5 {[%emt 0:03:05]} (5. Bd3 dxe4 6. Bxe4 f5 7. Bf3 e4 8. Be2 Nc6 9. d3 Bd6 10. Nh3 O-O 11. dxe4 fxe4 12. Be3 Bxh3 13. gxh3 {0-1 (54) Safarli,E (2660)-Mamedyarov,S (2753) Khanty-Mansiysk 2013}) 5... dxc4 {[%emt 0:04:19]} 6. Qxe5+ {[%emt 0:00:10] C27: Vienna Game: 2...Nf6 3 Bc4 Nxe4} Be6 {[%emt 0:01:11]} 7. Ne2 $146 {[%emt 0:07:17]} ({Predecessor:} 7. Nc5 Nc6 8. Qe4 Bxc5 9. d3 Nd4 10. Kd1 O-O 11. Nh3 Bd5 12. Qe5 {0-1 (27) Claussen,K (845)-Vianden,E (1050) Willingen 2017}) 7... Nc6 {[%emt 0:01:51]} 8. Qg3 {[%emt 0:01:38]} Qd7 {[%emt 0:03:57]} 9. b3 {[%emt 0:04:48]} Nd4 {[%emt 0:05:02]} 10. Nxd4 {[%emt 0:03:55]} Qxd4 {[%emt 0:00:32]} 11. Nc3 {[%emt 0:00:04]} Bd6 {[%emt 0:03:18]} 12. Qe3 {[%emt 0:00:34]} Qf6 {[%emt 0:03:53]} 13. bxc4 {[%emt 0:04:27]} O-O {[%emt 0:00:32]} 14. O-O {[%emt 0:09:11]} Rfe8 {[%emt 0:05:08]} 15. Qf3 {[%emt 0:07:15]} Qxf3 {[%emt 0:02:55]} 16. gxf3 {[%emt 0:01:15]} Bxc4 {[%emt 0:06:14]} 17. d3 {[%emt 0:00:22]} Be6 {[%emt 0:00:20]} 18. Bb2 {[%emt 0:01:22]} Bd7 {[%emt 0:03:22]} 19. Rfe1 {[%emt 0:03:04]} Bc6 {[%emt 0:03:07]} 20. Ne4 {[%emt 0:00:25]} Bf4 {[%emt 0:00:27]} 21. Kg2 {[%emt 0:01:41]} f5 {[%emt 0:01:14]} 22. Nc5 {[%emt 0:01:22]} g5 {[%emt 0:06:28]} 23. Ne6 {[%emt 0:04:16]} Bd2 {[%emt 0:00:50]} 24. Re5 {[%emt 0:03:07]} g4 {[%emt 0:02:10]} 25. Nxc7 {[%emt 0:03:48]} Bxf3+ {[%emt 0:01:13]} 26. Kg1 {[%emt 0:01:27]} Rxe5 {[%emt 0:00:54]} 27. Bxe5 {[%emt 0:00:04]} Rc8 {[%emt 0:03:21]} 28. Rb1 {[%emt 0:01:26]} Ba5 {[%emt 0:07:26]} 29. Nb5 {[%emt 0:02:54]} Rxc2 {[%emt 0:01:19]} 30. a3 {[%emt 0:02:20]} Bb6 {[%emt 0:02:25]} 31. Bd4 {[%emt 0:00:52]} Bxd4 {[%emt 0:01:23]} 32. Nxd4 {[%emt 0:00:05]} Rd2 {[%emt 0:00:31]} 33. Nxf3 {[%emt 0:00:05]} gxf3 {[%emt 0:00:18]} 34. h3 {[%emt 0:00:03]} b6 {[%emt 0:01:54]} 35. Rb3 {[%emt 0:00:06]} Kf7 {[%emt 0:00:43]} 36. d4 {[%emt 0:00:22]} Rxd4 {[%emt 0:00:28]} 37. Rxf3 {[%emt 0:00:04]} Ke6 {[%emt 0:00:53]} 38. Kg2 {[%emt 0:00:25]} b5 {[%emt 0:00:50]} 39. Re3+ {[%emt 0:01:21]} Kd6 {[%emt 0:00:20]} 40. Rf3 {[%emt 0:00:07]} f4 {[%emt 0:00:46]} 41. Rc3 {[%emt 0:00:08]} a5 {[%emt 0:00:37]} 42. Kf3 {[%emt 0:00:15]} Kd5 {[%emt 0:00:59]} 43. Kg4 {[%emt 0:00:24]} b4 {[%emt 0:10:45]} 44. axb4 {[%emt 0:00:14]} axb4 {[%emt 0:00:01]} 45. Rc7 {[%emt 0:00:14]} h6 {[%emt 0:02:56]} 46. Rb7 {[%emt 0:00:26]} Ke4 {[%emt 0:00:43]} 47. Rb6 {[%emt 0:00:17]} Kd3 {[%emt 0:01:34]} 48. Rxh6 {[%emt 0:00:23]} b3 {[%emt 0:00:10]} 49. Rb6 {[%emt 0:00:04]} Kc3 {[%emt 0:00:23]} 50. h4 {[%emt 0:00:22]} f3+ {[%emt 0:01:23]} 51. Kxf3 {[%emt 0:00:06]} Rxh4 {[%emt 0:00:09]} 52. Ke3 {[%emt 0:00:52]} b2 $2 {[%emt 0:01:48]} (52... Rc4 $19 53. Rb5 b2 54. Rxb2 Kxb2 55. Kd2 Rd4+ 56. Ke3 Kc3 57. f3 Rb4 58. f4 Rc4 59. f5 Ra4 60. f6 Ra6 61. f7 Rf6 62. Ke4 Rxf7 63. Ke5 Re7+ 64. Kf6 Re1 65. Kg6 Rf1 66. Kg5 Kd4 67. Kg4 Ke5 68. Kg3 Ke4 69. Kg4 Rg1+ 70. Kh4 Kf5 71. Kh3 Kf4 72. Kh2 Rg3 73. Kh1 Ke3 74. Kh2 Kf2 75. Kh1 Rh3#) 53. f4 $1 {[%emt 0:00:09]} Rh3+ {[%emt 0:03:53]} 54. Ke4 {[%emt 0:00:05]} Kc2 {[%emt 0:00:04]} 55. Rxb2+ {[%emt 0:00:25]} Kxb2 {[%emt 0:00:04]} 56. f5 {[%emt 0:00:07]} Kc3 {[%emt 0:00:23]} 57. f6 {[%emt 0:00:47]} Kc4 {[%emt 0:01:35]} 58. f7 {[%emt 0:00:58]} Rh1 {[%emt 0:00:52]} 59. Ke5 {[%emt 0:00:06]} (59. f8=Q {gets mated.} Re1+ 60. Kf3 Rf1+ {[%mdl 64] Skewer} 61. Ke4 Rxf8 62. Ke5 Re8+ 63. Kf4 Kd5 64. Kg5 Ke5 65. Kg4 Rf8 66. Kg3 Ke4 67. Kg4 Rg8+ 68. Kh5 Kf4 69. Kh6 Kf5 70. Kh7 Rg6 71. Kh8 Kf6 72. Kh7 Kf7 73. Kh8 Rh6#) 59... Rf1 {[%emt 0:00:16]} 60. Ke6 $11 {[%emt 0:00:04]} 1/2-1/2

[Event "Canary Islands-ch 2019"]
[Site "La Palma"]
[Date "2019.05.02"]
[Round "1.2"]
[White "Martin Hernandez, Ruben"]
[Black "Alonso Contreras, Mario Elias"]
[Result "1-0"]
[ECO "A14"]
[WhiteElo "2170"]
[BlackElo "1881"]
[Annotator "NA"]
[PlyCount "45"]
[EventDate "2019.05.02"]
[EventType "swiss"]
[EventCountry "ESP"]
[SourceTitle "playchess.com"]
[Source "ChessBase"]
[SourceQuality "1"]
[TimeControl "5400+30"]

1. Nf3 {[%emt 0:00:00]} Nf6 {[%emt 0:00:00]} 2. g3 {[%emt 0:02:56]} e6 {[%emt 0:02:01]} 3. Bg2 {[%emt 0:00:12]} d5 {[%emt 0:00:40]} 4. c4 {[%emt 0:00:08]} Be7 {[%emt 0:00:34]} 5. O-O {[%emt 0:01:04]} O-O {[%emt 0:00:11]} 6. b3 {[%emt 0:01:09]} c5 {[%emt 0:04:58]} 7. cxd5 {[%emt 0:01:08]} Nxd5 {[%emt 0:03:39]} 8. Bb2 {[%emt 0:02:34]} Nc6 {[%emt 0:04:17]} 9. Nc3 {[%emt 0:03:30]} Nxc3 {[%emt 0:18:14]} 10. dxc3 {[%emt 0:00:09]} Qc7 {[%emt 0:03:45]} 11. Qc2 {[%emt 0:03:19]} b6 {[%emt 0:07:37]} 12. Rad1 {[%emt 0:08:38]} Bb7 {[%emt 0:02:23]} 13. c4 {[%emt 0:01:58]} Rad8 {[%emt 0:04:27]} 14. Bc3 {[%emt 0:01:30]} Rxd1 {[%emt 0:07:30]} 15. Rxd1 {[%emt 0:00:06]} Rd8 {[%emt 0:01:06]} 16. Rxd8+ {[%emt 0:03:30]} Qxd8 {[%emt 0:01:30]} 17. Ne5 {[%emt 0:01:26]} Nd4 {[%emt 0:07:40]} 18. Qd3 {[%emt 0:01:45]} Bxg2 {[%emt 0:01:27]} 19. Kxg2 {[%emt 0:00:14]} f6 {[%emt 0:14:41]} 20. Bxd4 {[%emt 0:00:25]} cxd4 {[%emt 0:00:18]} 21. Nc6 {[%emt 0:01:00]} Qc7 {[%emt 0:09:44]} 22. Nxd4 {[%emt 0:00:48]} Bc5 {[%emt 0:00:20]} 23. Nxe6 {[%emt 0:00:52]} 1-0

[Event "Canary Islands-ch 2019"]
[Site "La Palma"]
[Date "2019.05.03"]
[Round "2.1"]
[White "Martin Rodriguez, Pablo"]
[Black "Martin Hernandez, Ruben"]
[Result "1/2-1/2"]
[ECO "A20"]
[WhiteElo "2004"]
[BlackElo "2170"]
[Annotator "NA"]
[PlyCount "69"]
[EventDate "2019.05.02"]
[EventType "swiss"]
[EventCountry "ESP"]
[SourceTitle "playchess.com"]
[Source "ChessBase"]
[SourceQuality "1"]
[TimeControl "5400+30"]

1. c4 {[%emt 0:00:00]} e5 {[%emt 0:00:00]} 2. g3 {[%emt 0:00:00]} Nf6 {[%emt 0:00:19]} 3. Bg2 {[%emt 0:00:00]} c6 {[%emt 0:00:49]} 4. d4 {[%emt 0:00:42]} e4 {[%emt 0:00:33]} 5. d5 {[%emt 0:00:55]} cxd5 {[%emt 0:05:06]} 6. cxd5 {[%emt 0:00:08]} Bb4+ {[%emt 0:00:12]} 7. Bd2 {[%emt 0:08:57]} Qe7 {[%emt 0:03:52]} 8. Nc3 {[%emt 0:19:21]} O-O {[%emt 0:00:33]} 9. Bg5 {[%emt 0:11:10]} h6 {[%emt 0:08:19]} 10. Bxf6 {[%emt 0:00:22]} Qxf6 {[%emt 0:00:04]} 11. Qb3 {[%emt 0:00:51]} Na6 {[%emt 0:02:01]} 12. Bxe4 {[%emt 0:17:01]} d6 {[%emt 0:00:08]} 13. Bd3 {[%emt 0:05:21]} Ba5 {[%emt 0:03:44]} 14. Bxa6 {[%emt 0:04:01]} bxa6 {[%emt 0:00:08]} 15. Rc1 {[%emt 0:08:55]} Bf5 {[%emt 0:06:21]} 16. Qa4 {[%emt 0:01:43]} Qd8 {[%emt 0:03:45]} 17. Qf4 {[%emt 0:01:20]} Qd7 {[%emt 0:01:59]} 18. Nf3 {[%emt 0:03:39]} Bh3 {[%emt 0:05:35]} 19. Rg1 {[%emt 0:04:06]} Qb5 {[%emt 0:09:07]} 20. Qd2 {[%emt 0:04:36]} Qd7 {[%emt 0:03:28]} 21. Qf4 {[%emt 0:00:21]} Bf5 {[%emt 0:07:13]} 22. Nd4 {[%emt 0:00:15]} Bg6 {[%emt 0:00:24]} 23. Nc6 {[%emt 0:01:19]} Bb6 {[%emt 0:00:08]} 24. Kf1 {[%emt 0:01:17]} Bd8 {[%emt 0:04:27]} 25. Nxd8 {[%emt 0:00:21]} Qh3+ {[%emt 0:00:11]} 26. Rg2 {[%emt 0:00:47]} Rfxd8 {[%emt 0:01:43]} 27. Kg1 {[%emt 0:00:07]} Rab8 {[%emt 0:00:58]} 28. b3 {[%emt 0:00:15]} Rbc8 {[%emt 0:01:17]} 29. Kh1 {[%emt 0:00:07]} Rc5 {[%emt 0:01:03]} 30. Rgg1 {[%emt 0:00:15]} Qd7 {[%emt 0:02:41]} 31. Rgd1 {[%emt 0:04:43]} Qb7 {[%emt 0:00:09]} 32. Kg1 {[%emt 0:00:20]} Rdc8 {[%emt 0:00:57]} 33. Na4 {[%emt 0:01:09]} Rxc1 {[%emt 0:03:18]} 34. Rxc1 {[%emt 0:00:04]} Rxc1+ {[%emt 0:00:05]} 35. Qxc1 {[%emt 0:00:07]} 1/2-1/2

[Event "Canary Islands-ch 2019"]
[Site "La Palma"]
[Date "2019.05.03"]
[Round "2.2"]
[White "Alvarez Alonso, Alberto"]
[Black "Korneev Leskova, Svyatoslav"]
[Result "0-1"]
[ECO "C01"]
[WhiteElo "1985"]
[BlackElo "2156"]
[Annotator "NA"]
[PlyCount "64"]
[EventDate "2019.05.02"]
[EventType "swiss"]
[EventCountry "ESP"]
[SourceTitle "playchess.com"]
[Source "ChessBase"]
[SourceQuality "1"]
[TimeControl "5400+30"]

1. e4 {[%emt 0:00:00]} e6 {[%emt 0:00:00]} 2. d4 {[%emt 0:00:00]} d5 {[%emt 0:00:00]} 3. exd5 {[%emt 0:00:00]} exd5 {[%emt 0:00:00]} 4. Nf3 {[%emt 0:00:02]} Bg4 {[%emt 0:00:00]} 5. Qe2+ {[%emt 0:00:15]} Qe7 {[%emt 0:01:28]} 6. Be3 {[%emt 0:00:11]} Nc6 {[%emt 0:00:12]} 7. Nc3 {[%emt 0:03:08]} O-O-O {[%emt 0:00:35]} 8. O-O-O {[%emt 0:01:21]} Nf6 {[%emt 0:00:52]} 9. h3 {[%emt 0:02:55]} Bh5 {[%emt 0:00:15]} 10. g4 {[%emt 0:06:50]} Bg6 {[%emt 0:00:05]} 11. Ne5 {[%emt 0:01:42]} Qe6 {[%emt 0:20:18]} 12. f4 {[%emt 0:14:12]} Be4 {[%emt 0:00:05]} 13. Bg2 {[%emt 0:15:40]} Bxg2 {[%emt 0:02:20]} 14. Qxg2 {[%emt 0:00:21]} Bb4 {[%emt 0:00:12]} 15. Ne2 {[%emt 0:21:25]} Ne4 {[%emt 0:06:34]} 16. c3 {[%emt 0:01:14]} f6 {[%emt 0:08:21]} 17. f5 {[%emt 0:04:05]} Qe8 {[%emt 0:00:33]} 18. Nxc6 {[%emt 0:05:43]} Qxc6 {[%emt 0:00:15]} 19. Kb1 {[%emt 0:00:38]} Bd6 {[%emt 0:00:28]} 20. Bf4 {[%emt 0:01:20]} Qa4 {[%emt 0:12:08]} 21. Qf3 {[%emt 0:05:12]} Rhe8 {[%emt 0:04:36]} 22. h4 {[%emt 0:03:08]} Re7 {[%emt 0:02:14]} 23. Bxd6 {[%emt 0:04:35]} Rxd6 {[%emt 0:00:09]} 24. Nc1 {[%emt 0:02:32]} Rb6 {[%emt 0:01:49]} 25. b3 {[%emt 0:01:39]} Qa5 {[%emt 0:01:56]} 26. Kb2 {[%emt 0:01:11]} Rc6 {[%emt 0:01:35]} 27. Rd3 {[%emt 0:01:19]} b5 {[%emt 0:04:07]} 28. b4 {[%emt 0:02:19]} Qa4 {[%emt 0:00:27]} 29. Nb3 {[%emt 0:00:31]} Nd6 {[%emt 0:03:55]} 30. Na5 {[%emt 0:00:39]} Ra6 {[%emt 0:01:43]} 31. Ra1 {[%emt 0:00:37]} Rxa5 {[%emt 0:00:48]} 32. bxa5 {[%emt 0:00:39]} Nc4+ {[%emt 0:00:08]} 0-1

[Event "Canary Islands-ch 2019"]
[Site "La Palma"]
[Date "2019.05.03"]
[Round "2.3"]
[White "Hidalgo Santana, Fernando"]
[Black "Cubas Cabrera, Angel Luis"]
[Result "0-1"]
[ECO "A14"]
[WhiteElo "2144"]
[BlackElo "2123"]
[Annotator "NA"]
[PlyCount "142"]
[EventDate "2019.05.02"]
[EventType "swiss"]
[EventCountry "ESP"]
[SourceTitle "playchess.com"]
[Source "ChessBase"]
[SourceQuality "1"]
[TimeControl "5400+30"]

1. g3 {[%emt 0:00:00]} d5 {[%emt 0:00:00]} 2. Bg2 {[%emt 0:01:35]} Nf6 {[%emt 0:00:00]} 3. c4 {[%emt 0:00:58]} e6 {[%emt 0:00:37]} 4. Nf3 {[%emt 0:01:20]} Be7 {[%emt 0:00:42]} 5. O-O {[%emt 0:00:07]} O-O {[%emt 0:00:05]} 6. b3 {[%emt 0:00:30]} b6 {[%emt 0:01:44]} 7. Bb2 {[%emt 0:03:03]} Bb7 {[%emt 0:00:39]} 8. d3 {[%emt 0:01:21]} c5 {[%emt 0:02:35]} 9. e3 {[%emt 0:05:03]} Nc6 {[%emt 0:06:54]} 10. Nc3 {[%emt 0:09:49]} Rc8 {[%emt 0:07:28]} 11. Qe2 {[%emt 0:00:56]} Qd6 {[%emt 0:10:19]} 12. Rfd1 {[%emt 0:00:24]} Qb8 {[%emt 0:03:44]} 13. Rac1 {[%emt 0:06:20]} Rfd8 {[%emt 0:01:18]} 14. cxd5 {[%emt 0:09:24]} Nxd5 {[%emt 0:04:52]} 15. Nxd5 {[%emt 0:03:15]} Rxd5 {[%emt 0:02:17]} 16. Nd2 {[%emt 0:04:02]} Rdd8 {[%emt 0:02:53]} 17. Qg4 {[%emt 0:01:24]} Bf8 {[%emt 0:04:55]} 18. Nc4 {[%emt 0:22:09]} Nb4 {[%emt 0:06:45]} 19. Be5 {[%emt 0:06:57]} Qa8 {[%emt 0:00:22]} 20. Bf1 {[%emt 0:00:00]} Bf3 {[%emt 0:03:32]} 21. Qh4 {[%emt 0:01:25]} Bxd1 {[%emt 0:04:54]} 22. Rxd1 {[%emt 0:00:03]} Qb7 {[%emt 0:05:18]} 23. a3 {[%emt 0:00:38]} Nc6 {[%emt 0:00:19]} 24. Bc3 {[%emt 0:00:58]} b5 {[%emt 0:04:26]} 25. Nd2 {[%emt 0:01:14]} Ne7 {[%emt 0:01:24]} 26. Qg4 {[%emt 0:05:48]} Ng6 {[%emt 0:03:45]} 27. Bb2 {[%emt 0:01:52]} Qd7 {[%emt 0:03:36]} 28. h4 {[%emt 0:00:57]} h6 {[%emt 0:01:39]} 29. h5 {[%emt 0:00:31]} Ne7 {[%emt 0:00:38]} 30. Be2 {[%emt 0:01:46]} e5 {[%emt 0:03:22]} 31. Qxd7 {[%emt 0:00:51]} Rxd7 {[%emt 0:00:01]} 32. Bxe5 {[%emt 0:00:02]} Nc6 {[%emt 0:01:47]} 33. Bb2 {[%emt 0:00:54]} Rcd8 {[%emt 0:00:19]} 34. Nf3 {[%emt 0:05:39]} a6 {[%emt 0:03:08]} 35. Rc1 {[%emt 0:01:09]} Na5 {[%emt 0:01:57]} 36. Nd2 {[%emt 0:00:43]} Rxd3 {[%emt 0:02:29]} 37. Bxd3 {[%emt 0:00:08]} Rxd3 {[%emt 0:00:01]} 38. Rc2 {[%emt 0:02:44]} Nxb3 {[%emt 0:00:12]} 39. Nf3 {[%emt 0:00:14]} Rd1+ {[%emt 0:02:03]} 40. Kg2 {[%emt 0:00:08]} c4 {[%emt 0:00:38]} 41. Nd4 {[%emt 0:01:06]} Nxd4 {[%emt 0:01:23]} 42. exd4 {[%emt 0:00:04]} Rd3 {[%emt 0:00:25]} 43. a4 {[%emt 0:00:04]} Be7 {[%emt 0:01:20]} 44. Re2 {[%emt 0:01:23]} Kf8 {[%emt 0:02:17]} 45. axb5 {[%emt 0:00:41]} axb5 {[%emt 0:00:03]} 46. Re5 {[%emt 0:00:48]} Rb3 {[%emt 0:00:07]} 47. Bc1 {[%emt 0:00:12]} Bf6 {[%emt 0:00:38]} 48. Rd5 {[%emt 0:00:09]} Ke7 {[%emt 0:01:32]} 49. Be3 {[%emt 0:00:19]} b4 {[%emt 0:01:11]} 50. Rc5 {[%emt 0:01:47]} c3 {[%emt 0:00:28]} 51. Kf3 {[%emt 0:00:07]} Rb2 {[%emt 0:00:47]} 52. Ke4 {[%emt 0:00:08]} c2 {[%emt 0:00:36]} 53. Kd3 {[%emt 0:02:17]} b3 {[%emt 0:00:01]} 54. Rb5 {[%emt 0:00:47]} Rb1 {[%emt 0:00:48]} 55. Bd2 {[%emt 0:00:34]} Rd1 {[%emt 0:00:50]} 56. Ke2 {[%emt 0:00:29]} c1=Q {[%emt 0:00:36]} 57. Bxc1 {[%emt 0:00:07]} Rxc1 {[%emt 0:00:01]} 58. Rxb3 {[%emt 0:00:02]} Bxd4 {[%emt 0:00:26]} 59. f3 {[%emt 0:00:08]} Rc7 {[%emt 0:00:22]} 60. Kd3 {[%emt 0:00:09]} Bf6 {[%emt 0:00:26]} 61. Ke4 {[%emt 0:00:33]} Rc4+ {[%emt 0:00:40]} 62. Kd3 {[%emt 0:00:13]} Rc6 {[%emt 0:00:12]} 63. Rb7+ {[%emt 0:00:36]} Ke6 {[%emt 0:00:02]} 64. Rb5 {[%emt 0:00:50]} Be5 {[%emt 0:00:48]} 65. f4 {[%emt 0:00:43]} Bd6 {[%emt 0:00:21]} 66. Ke4 {[%emt 0:01:46]} Rc4+ {[%emt 0:00:07]} 67. Kf3 {[%emt 0:00:26]} Rc5 {[%emt 0:00:04]} 68. Rb6 {[%emt 0:00:38]} Rxh5 {[%emt 0:00:13]} 69. g4 {[%emt 0:00:12]} Ra5 {[%emt 0:00:30]} 70. f5+ {[%emt 0:00:29]} Kd7 {[%emt 0:00:28]} 71. Rb3 {[%emt 0:00:22]} Ra3 {[%emt 0:00:11]} 0-1

[Event "Canary Islands-ch 2019"]
[Site "La Palma"]
[Date "2019.05.03"]
[Round "3.1"]
[White "Perez Guerra, Raul"]
[Black "Korneev Leskova, Svyatoslav"]
[Result "1/2-1/2"]
[ECO "C01"]
[WhiteElo "2125"]
[BlackElo "2156"]
[Annotator "RC"]
[PlyCount "176"]
[EventDate "2019.05.02"]
[EventType "swiss"]
[EventCountry "ESP"]
[SourceTitle "playchess.com"]
[Source "ChessBase"]
[SourceQuality "1"]
[TimeControl "5400+30"]

1. e4 {[%emt 0:00:00]} e6 {[%emt 0:00:00]} 2. d4 {[%emt 0:00:10]} d5 {[%emt 0:00:00]} 3. exd5 {[%emt 0:02:37]} exd5 {[%emt 0:00:00]} 4. Bd3 {[%emt 0:00:46]} Nc6 {[%emt 0:00:43]} 5. Nf3 {[%emt 0:01:14]} Bd6 {[%emt 0:00:41]} 6. O-O {[%emt 0:01:35]} Nge7 {[%emt 0:02:20]} 7. Re1 {[%emt 0:00:58]} Bg4 {[%emt 0:00:26]} 8. c3 {[%emt 0:00:19]} Qd7 {[%emt 0:00:58]} 9. Na3 {[%emt 0:01:00]} a6 {[%emt 0:06:17]} 10. Nc2 {[%emt 0:00:57]} O-O {[%emt 0:02:51]} 11. Ne3 {[%emt 0:01:01]} Bh5 {[%emt 0:00:21]} 12. Ne5 {[%emt 0:00:35]} Bxd1 {[%emt 0:03:25]} 13. Nxd7 {[%emt 0:00:07]} Rfd8 {[%emt 0:00:15]} 14. Nf6+ {[%emt 0:00:05]} gxf6 {[%emt 0:00:04]} 15. Rxd1 {[%emt 0:00:07]} Bf4 {[%emt 0:01:27]} 16. g3 {[%emt 0:01:06]} Bxe3 {[%emt 0:00:47]} 17. Bxe3 {[%emt 0:00:01]} Kg7 {[%emt 0:03:42]} 18. Re1 {[%emt 0:01:20]} Nc8 {[%emt 0:05:45]} 19. Bf4 {[%emt 0:02:39]} Nd6 {[%emt 0:00:06]} 20. Re2 {[%emt 0:00:33]} Rd7 {[%emt 0:02:55]} 21. Rae1 {[%emt 0:00:37]} Rad8 {[%emt 0:08:59]} 22. h4 {[%emt 0:00:40]} Na7 {[%emt 0:01:32]} 23. h5 {[%emt 0:00:40]} h6 {[%emt 0:04:09]} 24. Kg2 {[%emt 0:01:03]} Nac8 {[%emt 0:00:32]} 25. Kf3 {[%emt 0:02:04]} Rf8 {[%emt 0:01:18]} 26. Rh1 {[%emt 0:01:36]} f5 {[%emt 0:05:11]} 27. Rg1 {[%emt 0:02:24]} Ne4 {[%emt 0:02:43]} 28. g4 {[%emt 0:00:54]} fxg4+ {[%emt 0:00:02]} 29. Rxg4+ {[%emt 0:00:09]} Kh7 {[%emt 0:00:01]} 30. Rg1 {[%emt 0:01:45]} f5 {[%emt 0:03:38]} 31. Rg6 {[%emt 0:00:22]} Rg7 {[%emt 0:04:47]} 32. Rxh6+ {[%emt 0:03:51]} Kg8 {[%emt 0:00:04]} 33. Re1 {[%emt 0:10:51]} Ncd6 {[%emt 0:04:36]} 34. Be5 {[%emt 0:02:03]} Rg4 {[%emt 0:03:29]} 35. Rg6+ {[%emt 0:01:34]} Kh7 {[%emt 0:02:08]} 36. Rxg4 {[%emt 0:00:21]} fxg4+ {[%emt 0:00:02]} 37. Kxg4 {[%emt 0:00:01]} Rg8+ {[%emt 0:04:02]} 38. Kh3 {[%emt 0:01:31]} Kh6 {[%emt 0:00:22]} 39. Bf4+ {[%emt 0:00:51]} Kxh5 {[%emt 0:00:32]} 40. Be2+ {[%emt 0:00:04]} Kg6 {[%emt 0:00:09]} 41. Rg1+ {[%emt 0:00:03]} Kh7 {[%emt 0:00:14]} 42. Rxg8 {[%emt 0:00:06]} Kxg8 {[%emt 0:00:02]} 43. f3 {[%emt 0:00:39]} Nf6 {[%emt 0:00:02]} 44. Be5 {[%emt 0:01:10]} Kf7 {[%emt 0:01:16]} 45. Kh4 {[%emt 0:00:14]} Ke6 {[%emt 0:01:26]} 46. Bd3 {[%emt 0:01:17]} a5 {[%emt 0:00:47]} 47. Bxd6 {[%emt 0:03:34]} Kxd6 {[%emt 0:00:11]} 48. Kg5 {[%emt 0:00:07]} Ke7 {[%emt 0:01:23]} 49. Kg6 {[%emt 0:00:24]} c6 {[%emt 0:01:05]} 50. f4 {[%emt 0:02:53]} Ne4 {[%emt 0:01:19]} 51. Be2 {[%emt 0:01:58]} Nf2 {[%emt 0:05:37]} 52. f5 {[%emt 0:03:34]} Ne4 {[%emt 0:00:07]} 53. Kg7 {[%emt 0:00:04]} Nf6 {[%emt 0:00:15]} 54. Bf3 {[%emt 0:00:21]} Ne8+ {[%emt 0:00:47]} 55. Kg6 {[%emt 0:00:21]} Nf6 {[%emt 0:00:07]} 56. b3 {[%emt 0:00:50]} b5 {[%emt 0:01:28]} 57. a4 {[%emt 0:00:14]} bxa4 {[%emt 0:00:06]} 58. bxa4 {[%emt 0:00:00]} Ne8 {[%emt 0:00:24]} 59. Be2 {[%emt 0:00:20]} Nf6 {[%emt 0:00:05]} 60. Ba6 {[%emt 0:00:20]} Ne4 {[%emt 0:00:07]} 61. Kg7 {[%emt 0:00:05]} Nf6 {[%emt 0:00:39]} 62. Bb7 {[%emt 0:00:09]} Nh5+ {[%emt 0:00:19]} 63. Kg6 {[%emt 0:01:51]} Nf4+ {[%emt 0:00:05]} 64. Kg5 {[%emt 0:02:32]} Ne2 {[%emt 0:03:52]} 65. Bxc6 {[%emt 0:00:11]} Nxc3 {[%emt 0:00:05]} 66. Kg6 {[%emt 0:01:01]} Ne2 {[%emt 0:02:34]} 67. Kg7 {[%emt 0:06:34]} Nxd4 {[%emt 0:00:19]} 68. f6+ {[%emt 0:00:02]} Ke6 {[%emt 0:01:36]} 69. f7 {[%emt 0:05:44]} Nf5+ {[%emt 0:00:04]} 70. Kf8 {[%emt 0:00:12]} Nh6 {[%emt 0:00:41]} 71. Be8 {[%emt 0:00:33]} Kf6 {[%emt 0:00:06]} 72. Bc6 {[%emt 0:00:43]} Nxf7 {[%emt 0:01:52]} 73. Bxd5 {[%emt 0:00:04]} Nd6 {[%emt 0:00:07]} 74. Bc6 {[%emt 0:00:20]} Ke6 {[%emt 0:00:22]} 75. Kg7 {[%emt 0:00:30]} Nf5+ {[%emt 0:00:06]} 76. Kh7 {[%emt 0:00:23]} Ne7 {[%emt 0:00:16]} 77. Bb5 {[%emt 0:00:06]} Kd6 {[%emt 0:01:06]} 78. Kh6 {[%emt 0:00:57]} Kc5 {[%emt 0:00:22]} 79. Kg5 {[%emt 0:00:13]} Kb4 {[%emt 0:00:12]} 80. Kf4 {[%emt 0:00:13]} Nd5+ {[%emt 0:00:02]} 81. Ke4 {[%emt 0:00:15]} Nb6 {[%emt 0:01:15]} 82. Kd3 {[%emt 0:00:07]} Kb3 {[%emt 0:00:13]} 83. Kd2 {[%emt 0:00:05]} Kb2 {[%emt 0:00:11]} 84. Kd3 {[%emt 0:00:10]} Nd5 {[%emt 0:00:22]} 85. Kc4 {[%emt 0:00:19]} Ne3+ {[%emt 0:00:16]} 86. Kd3 {[%emt 0:00:32]} Nd1 {[%emt 0:00:09]} 87. Be8 {[%emt 0:00:09]} Nc3 {[%emt 0:00:06]} 88. Kc4 {[%emt 0:00:04]} Nxa4 {[%emt 0:00:05]} 1/2-1/2

[Event "Canary Islands-ch 2019"]
[Site "La Palma"]
[Date "2019.05.03"]
[Round "3.2"]
[White "Cubas Cabrera, Angel Luis"]
[Black "Martin Rodriguez, Pablo"]
[Result "1/2-1/2"]
[ECO "A43"]
[WhiteElo "2123"]
[BlackElo "2004"]
[Annotator "NA"]
[PlyCount "54"]
[EventDate "2019.05.02"]
[EventType "swiss"]
[EventCountry "ESP"]
[SourceTitle "playchess.com"]
[Source "ChessBase"]
[SourceQuality "1"]
[TimeControl "5400+30"]

1. d4 {[%emt 0:00:00]} Nf6 {[%emt 0:00:00]} 2. Nf3 {[%emt 0:00:00]} c5 {[%emt 0:00:00]} 3. d5 {[%emt 0:00:19]} b5 {[%emt 0:00:11]} 4. Bg5 {[%emt 0:00:08]} d6 {[%emt 0:11:36]} 5. e3 {[%emt 0:08:56]} a6 {[%emt 0:00:14]} 6. a4 {[%emt 0:00:25] A43: Schmid Benoni} b4 {[%emt 0:00:34]} 7. Bxf6 {[%emt 0:01:45]} exf6 {[%emt 0:00:13]} 8. a5 {[%emt 0:02:36]} g6 {[%emt 0:00:31]} 9. Nbd2 {[%emt 0:03:49]} Nd7 $146 {[%emt 0:04:22]} ({Predecessor:} 9... Ra7 10. c3 bxc3 11. bxc3 Bg7 12. Qa4+ Bd7 13. Qf4 O-O 14. Qxd6 {1-0 (24) Van den Doel,E (2564)-Plomp,M (2546) Zwolle 2001}) 10. e4 {[%emt 0:05:05]} Ne5 {[%emt 0:01:09]} 11. Nxe5 {[%emt 0:03:15]} fxe5 {[%emt 0:00:07]} 12. Be2 {[%emt 0:04:48]} f5 {[%emt 0:06:25]} 13. Bd3 {[%emt 0:07:15]} f4 {[%emt 0:07:20]} 14. Nc4 {[%emt 0:04:06]} Qg5 {[%emt 0:05:20]} 15. Kf1 {[%emt 0:04:53]} Ra7 {[%emt 0:02:08]} 16. Nb6 {[%emt 0:02:14]} Bb7 {[%emt 0:00:05]} 17. h4 {[%emt 0:02:27]} Qe7 {[%emt 0:03:10]} 18. h5 {[%emt 0:00:15]} g5 {[%emt 0:00:31]} 19. Qg4 {[%emt 0:06:14]} Bg7 {[%emt 0:04:33]} 20. Be2 {[%emt 0:01:35]} O-O {[%emt 0:02:01]} 21. Qh3 {[%emt 0:02:16]} Bf6 {[%emt 0:01:29]} 22. b3 $16 {[%emt 0:00:37]} Kh8 {[%emt 0:00:58]} 23. Rd1 {[%emt 0:07:36]} Qc7 {[%emt 0:03:05]} 24. Bg4 {[%emt 0:00:28]} Bd8 {[%emt 0:04:11]} 25. Nc4 {[%emt 0:03:54]} Qe7 {[%emt 0:00:18]} 26. Be6 {[%emt 0:05:52]} Bc7 {[%emt 0:00:48]} 27. Qg4 {[%emt 0:00:30]} Raa8 {[%emt 0:00:19]} 1/2-1/2